Workbook

Sheet 1 неделя
B3: 12-дневное меню обучачающихся 5-11 классов МБОУ "Татарско-Баганинская средняя общеобразовательная школа" Чистопольского муниципального района Республики Татарстан ( 1-ая неделя)
A5: № рецептуры | B5: Наименование блюд | G5: Выход | H5: Белки, г | I5: Жиры, г | K5: Углеводы, г | M5: Калорийность, ккал | O5: Витамин B1, мг | P5: Витамин С, мг | R5: Витамин А, мг | T5: Витамин Е, мг | V5: Ca, мг | W5: P, мг | X5: Mg, мг | Y5: Fe, мг
B6: 1-ая неделя
B7: 1 день
A8: № 376 Сбор.рец. На прод-ию для обуч. Во всех образ.учреж-Дели 2015 | B8: Кондитерские изделия ( печенье) | G8: 40 | H8: 2.280 | I8: 0.240 | K8: 14.760 | M8: 71 | O8: 0.033 | P8: - | R8: - | T8: 0.330 | V8: 6.000 | W8: 19.500 | X8: 4.200 | Y8: 0.330
A9: № 376 Сбор.рец. На прод-ию для обуч. Во всех образ.учреж-Дели 2015 | B9: Чай с сахаром | G9: 200/15 | H9: 0.53 | I9: - | K9: 9.470 | M9: 40 | O9: - | P9: 0.27 | R9: - | T9: - | V9: 13.600 | W9: 22.13 | X9: 11.73 | Y9: 0.100
A10: № 266 Сбор.рец. На прод-ию для обуч. Во всех образ.учреж-Дели 2015 | B10: МЯСО ТУШЕНОЕ | G10: 50\50 | H10: 8.320 | I10: 7.150 | M10: 200 | O10: 0.040 | T10: 1.343 | V10: 11.010 | W10: 127.020 | X10: 6.000 | Y10: 1.100
A11: № 303 Сбор.рец. На прод-ию для обуч. Во всех образ.учреж-Дели 2015 | B11: КАША ГРЕЧНЕВАЯ РАССЫПЧАТАЯ С МАСЛОМ | G11: 200 | H11: 6.662 | I11: 9.024 | K11: 34.000 | M11: 170 | O11: 0.292 | P11: - | T11: 0.518 | V11: 37.352 | W11: 170.553 | X11: 44.550 | Y11: 1.101
A12: № 376 Сбор.рец. На прод-ию для обуч. Во всех образ.учреж-Дели 2015 | B12: ЧАЙ С САХАРОМ | G12: 200/15 | H12: 0.53 | I12: - | K12: 9.470 | M12: 40 | O12: - | P12: 0.27 | R12: - | T12: - | V12: 13.600 | W12: 22.13 | X12: 11.73 | Y12: 0.100
B13: ХЛЕБ ПШЕНИНИЧНЫЙ | G13: 50 | H13: 2.280 | I13: 0.240 | K13: 14.760 | M13: 71 | O13: 0.033 | P13: - | R13: - | T13: 0.330 | V13: 6.000 | W13: 19.500 | X13: 4.200 | Y13: 0.330
B14: Итого: | H14: =SUM(H9:H13) -> 18.322 | I14: =SUM(I9:I13) -> 16.414 | K14: =SUM(K9:K13) -> 67.700 | M14: =SUM(M9:M13) -> 521 | O14: =SUM(O9:O13) -> 0.365 | P14: =SUM(P9:P13) -> 0.540 | R14: =SUM(R11:R13) -> 0 | T14: =SUM(T9:T13) -> 2.191 | V14: =SUM(V9:V13) -> 81.562 | W14: =SUM(W9:W13) -> 361.333 | X14: =SUM(X9:X13) -> 78.210 | Y14: =SUM(Y9:Y13) -> 2.731
B15: 2 день
A16: № 376 Сбор.рец. На прод-ию для обуч. Во всех образ.учреж-Дели 2015 | B16: Сдоба обыкновенная | G16: 100 | H16: 2.280 | I16: 0.240 | K16: 14.760 | M16: 71 | O16: 0.033 | P16: - | R16: - | T16: 0.330 | V16: 6.000 | W16: 19.500 | X16: 4.200 | Y16: 0.330
A17: № 376 Сбор.рец. На прод-ию для обуч. Во всех образ.учреж-Дели 2015 | B17: КАКАО С МОЛОКОМ | G17: 200/15 | H17: 0.53 | I17: - | K17: 9.470 | M17: 40 | O17: - | P17: 0.27 | R17: - | T17: - | V17: 13.600 | W17: 22.13 | X17: 11.73 | Y17: 0.100
A18: № 289 Сбор.рец. На прод-ию для обуч. Во всех образ.учреж-Дели 2015 | B18: ПЛОВ ИЗ ГОВЯДИНЫ | G18: 50/180 | H18: 12.300 | I18: 17.660 | K18: 29.850 | M18: 313 | O18: 0.201 | P18: 8.076 | R18: 0.180 | T18: 2.100 | V18: 57.660 | W18: 201.911 | X18: 26.394 | Y18: 0.111
A19: № 382 Сбор.рец. На прод-ию для обуч. Во всех образ.учреж-Дели 2015 | B19: ЧАЙ С САХАРОМ | G19: 200\15 | H19: 3.780 | I19: 0.670 | K19: 26.000 | M19: 125 | O19: 0.020 | P19: 1.330 | T19: 0.012 | V19: 133.330 | W19: 111.110 | X19: 25.560 | Y19: 2.000
B20: ХЛЕБ ПШЕНИНИЧНЫЙ | G20: 50 | H20: 2.280 | I20: 0.240 | K20: 14.760 | M20: 71 | O20: 0.033 | P20: - | R20: - | T20: 0.330 | V20: 6.000 | W20: 19.500 | X20: 4.200 | Y20: 0.330
B21: Итого: | H21: =SUM(H18:H20) -> 18.360 | I21: =SUM(I18:J20) -> 18.570 | K21: =SUM(K18:L20) -> 70.610 | M21: =SUM(M18:N20) -> 509 | O21: =SUM(O18:O20) -> 0.254 | P21: =SUM(P18:P20) -> 9.406 | R21: =SUM(R18:R20) -> 0.2 | T21: =SUM(T18:T20) -> 2.442 | V21: =SUM(V18:V20) -> 196.99 | W21: =SUM(W18:W20) -> 332.521 | X21: =SUM(X18:X20) -> 56.154 | Y21: =SUM(Y18:Y20) -> 2.441
B22: 3 день
A23: № 376 Сбор.рец. На прод-ию для обуч. Во всех образ.учреж-Дели 2015 | B23: Сдоба обыкновенная | G23: 100 | H23: 2.280 | I23: 0.240 | K23: 14.760 | M23: 71 | O23: 0.033 | P23: - | R23: - | T23: 0.330 | V23: 6.000 | W23: 19.500 | X23: 4.200 | Y23: 0.330
A24: № 376 Сбор.рец. На прод-ию для обуч. Во всех образ.учреж-Дели 2015 | B24: Чай с сахаром | G24: 200/15 | H24: 0.53 | I24: - | K24: 9.470 | M24: 40 | O24: - | P24: 0.27 | R24: - | T24: - | V24: 13.600 | W24: 22.13 | X24: 11.73 | Y24: 0.100
A25: № 256 Сбор.рец. На прод-ию для обуч. Во всех образ.учреж-Дели 2015 | B25: ФРИКАДЕЛЬКИ С СОУСЕ | G25: 70/50 | H25: 10.500 | I25: 11.030 | K25: 3.184 | M25: 196 | O25: 0.140 | P25: 3.890 | T25: 0.363 | V25: 66.806 | W25: 215.174 | X25: 30.164 | Y25: 1.430
A26: № 203 Сбор.рец. На прод-ию для обуч. Во всех образ.учреж-Дели 2015 | B26: МАКАРОННЫЕ ИЗДЕЛИЯ ОТВАРНЫЕ | G26: 200\5 | H26: 5.100 | I26: 4.468 | K26: 28.500 | M26: 187 | O26: 0.087 | P26: - | R26: 0.100 | T26: 0.816 | V26: 16.457 | W26: 57.009 | X26: 8.479 | Y26: 0.869
A27: № 376 Сбор.рец. На прод-ию для обуч. Во всех образ.учреж-Дели 2015 | B27: КОМПОТ ИЗ СУХОФРУКТОВ | G27: 200/15 | H27: 0.53 | I27: - | K27: 9.470 | M27: 40 | O27: - | P27: 0.27 | R27: - | T27: - | V27: 13.600 | W27: 22.13 | X27: 11.73 | Y27: 0.100
B28: ХЛЕБ ПШЕНИНИЧНЫЙ | G28: 50 | H28: 2.280 | I28: 0.240 | K28: 14.760 | M28: 71 | O28: 0.033 | P28: - | R28: - | T28: 0.330 | V28: 6.000 | W28: 19.500 | X28: 4.200 | Y28: 0.330
B29: Итого: | H29: =SUM(H25:H28) -> 18.410 | I29: =SUM(I25:J28) -> 15.738 | K29: =SUM(K25:L28) -> 55.914 | M29: =SUM(M25:N28) -> 494 | O29: =SUM(O25:O28) -> 0.260 | P29: =SUM(P25:P28) -> 4.16 | R29: =SUM(R26:R28) -> 0.1 | T29: =SUM(T25:T28) -> 1.51 | V29: =SUM(V25:V28) -> 102.863 | W29: =SUM(W25:W28) -> 313.81 | X29: =SUM(X25:X28) -> 54.573 | Y29: =SUM(Y25:Y28) -> 2.729
B30: 4 день
A31: № 376 Сбор.рец. На прод-ию для обуч. Во всех образ.учреж-Дели 2015 | B31: Кондитерские изделия ( пряники) | G31: 80 | H31: 2.280 | I31: 0.240 | K31: 14.760 | M31: 71 | O31: 0.033 | P31: - | R31: - | T31: 0.330 | V31: 6.000 | W31: 19.500 | X31: 4.200 | Y31: 0.330
A32: № 376 Сбор.рец. На прод-ию для обуч. Во всех образ.учреж-Дели 2015 | B32: Чай с сахаром | G32: 200/15 | H32: 0.53 | I32: - | K32: 9.470 | M32: 40 | O32: - | P32: 0.27 | R32: - | T32: - | V32: 13.600 | W32: 22.13 | X32: 11.73 | Y32: 0.100
A33: № 295 Сбор.рец. На прод-ию для обуч. Во всех образ.учреж-Дели 2015 | B33: КОТЛЕТЫ РЫБНЫЕ | G33: 100 | H33: 10.240 | I33: 5.370 | K33: 19.360 | N33: 159 | O33: 0.080 | P33: 0.000 | T33: - | V33: 89.430 | W33: 158.000 | X33: 0.640 | Y33: 0.300
A34: № 312 Сбор.рец. На прод-ию для обуч. Во всех образ.учреж-Дели -2015 | B34: ПЮРЕ КАРТОФЕЛЬНОЕ | G34: 200 | H34: 3.090 | I34: 8.282 | K34: 22 | M34: 172 | O34: 0.164 | P34: 7.943 | R34: 0.080 | T34: 3.000 | V34: 47.805 | W34: 98.835 | X34: 8.000 | Y34: 0.000
A35: № 376 Сбор.рец. На прод-ию для обуч. Во всех образ.учреж-Дели 2015 | B35: КАКАО С МОЛОКОМ | G35: 200 | H35: 0.53 | I35: - | K35: 9.470 | M35: 40 | O35: - | P35: 0.27 | R35: - | T35: - | V35: 13.600 | W35: 22.13 | X35: 11.73 | Y35: 0.100
B36: ХЛЕБ ПШЕНИНИЧНЫЙ | G36: 50 | H36: 2.280 | I36: 0.240 | K36: 14.760 | M36: 71 | O36: 0.033 | P36: - | R36: - | T36: 0.330 | V36: 6.000 | W36: 19.500 | X36: 4.200 | Y36: 0.330
B37: Итого: | H37: =SUM(H33:H36) -> 16.140 | I37: =SUM(I33:I36) -> 13.892 | K37: =SUM(K33:K36) -> 65.657 | M37: 0 | O37: =SUM(O33:O36) -> 0.28 | P37: 15.523 | R37: =SUM(R33:R36) -> 0.1 | T37: 3.100 | V37: =SUM(V33:V36) -> 156.835 | W37: =SUM(W33:W36) -> 298.465 | X37: 65.900 | Y37: =SUM(Y33:Y36) -> 0.730
B38: 5 день
A39: № 376 Сбор.рец. На прод-ию для обуч. Во всех образ.учреж-Дели 2015 | B39: ХЛЕБ С МАСЛОМ | G39: 50\10 | H39: 2.280 | I39: 0.240 | K39: 14.760 | M39: 71 | O39: 0.033 | P39: - | R39: - | T39: 0.330 | V39: 6.000 | W39: 19.500 | X39: 4.200 | Y39: 0.330
A40: № 376 Сбор.рец. На прод-ию для обуч. Во всех образ.учреж-Дели 2015 | B40: Чай с сахаром | G40: 200/15 | H40: 0.53 | I40: - | K40: 9.470 | M40: 40 | O40: - | P40: 0.27 | R40: - | T40: - | V40: 13.600 | W40: 22.13 | X40: 11.73 | Y40: 0.100
A41: № 268 Сбор.рец. На прод-ию для обуч. Во всех образ.учреж-Дели 2015 | B41: КОТЛЕТЫ ИЗ ПТИЦЫ | G41: 100 | H41: 9.660 | I41: 12.412 | K41: 9.450 | M41: 182 | O41: 0.166 | P41: 3.861 | R41: - | T41: 1.384 | V41: 54.974 | W41: 155.026 | X41: 21.930 | Y41: 1.678
A42: № 304 Сбор.рец. На прод-ию для обуч. Во всех образ.учреж-Дели 2015 | B42: РИС ОТВАРНОЙ | G42: 200 | H42: 3.834 | I42: 5.434 | K42: 29.600 | M42: 210 | O42: 0.044 | P42: - | R42: 0.180 | T42: 0.284 | V42: 11.460 | W42: 84.150 | X42: 13.330 | Y42: 0.010
A43: № 376 Сбор.рец. На прод-ию для обуч. Во всех образ.учреж-Дели 2015 | B43: ЧАЙ С САХАРОМ | G43: 200/15 | H43: 0.53 | I43: - | K43: 9.470 | M43: 40 | O43: - | P43: 0.27 | R43: - | T43: - | V43: 13.600 | W43: 22.13 | X43: 11.73 | Y43: 0.100
B44: ХЛЕБ ПШЕНИНИЧНЫЙ | G44: 50 | H44: 2.280 | I44: 0.240 | K44: 14.760 | M44: 71 | O44: 0.033 | P44: - | R44: - | T44: 0.330 | V44: 6.000 | W44: 19.500 | X44: 4.200 | Y44: 0.330
B45: Итого: | H45: =SUM(H41:H44) -> 16.304 | I45: =SUM(I41:I44) -> 18.086 | K45: =SUM(K41:K44) -> 63.280 | M45: =SUM(M41:M44) -> 503 | O45: =SUM(O41:O44) -> 0.2 | P45: =SUM(P41:P44) -> 4.131 | R45: =SUM(R42:R44) -> 0.18 | T45: =SUM(T41:T44) -> 1.998 | V45: =SUM(V41:V44) -> 86.034 | W45: =SUM(W41:W44) -> 280.806 | X45: =SUM(X41:X44) -> 51.19 | Y45: =SUM(Y41:Y44) -> 2.118
B46: 6 день
A47: № 376 Сбор.рец. На прод-ию для обуч. Во всех образ.учреж-Дели 2015 | B47: Кондитерские изделия ( печенье) | G47: 40 | H47: 2.280 | I47: 0.240 | K47: 14.760 | M47: 71 | O47: 0.033 | P47: - | R47: - | T47: 0.330 | V47: 6.000 | W47: 19.500 | X47: 4.200 | Y47: 0.330
A48: № 376 Сбор.рец. На прод-ию для обуч. Во всех образ.учреж-Дели 2015 | B48: Чай с сахаром | G48: 200/15 | H48: 0.53 | I48: - | K48: 9.470 | M48: 40 | O48: - | P48: 0.27 | R48: - | T48: - | V48: 13.600 | W48: 22.13 | X48: 11.73 | Y48: 0.100
A49: № 291 Сбор.рец. На прод-ию для обуч. Во всех образ.учреж-Дели -2015 | B49: РАГУ ИЗ ПТИЦЫ | G49: 50/180 | H49: 14.510 | I49: 14.710 | K49: 28.340 | M49: 364 | O49: 0.210 | P49: 4.900 | R49: 0.100 | T49: 1.200 | V49: 83.070 | W49: 273.000 | X49: 40.450 | Y49: 1.900
A50: № 379 Сбор.рец. На прод-ию для обуч. Во всех образ.учреж-Дели 2015 | B50: ЧАЙ С САХАРОМ | G50: 200/15 | H50: 0.53 | I50: - | K50: 9.470 | M50: 40 | O50: - | P50: 0.27 | R50: - | T50: - | V50: 13.600 | W50: 22.13 | X50: 11.73 | Y50: 0.100
B51: ХЛЕБ ПШЕНИНИЧНЫЙ | G51: 50 | H51: 2.280 | I51: 0.240 | K51: 14.760 | M51: 71 | O51: 0.033 | P51: - | R51: - | T51: 0.330 | V51: 6.000 | W51: 19.500 | X51: 4.200 | Y51: 0.330
B52: Итого: | H52: =SUM(H49:H51) -> 17.320 | I52: =SUM(I49:I51) -> 14.950 | K52: =SUM(K49:K51) -> 52.570 | M52: =SUM(M49:M51) -> 475 | O52: =SUM(O49:O51) -> 0.243 | P52: =SUM(P49:P51) -> 5.170 | R52: =SUM(R49:R51) -> 0.100 | T52: =SUM(T49:T51) -> 2 | V52: =SUM(V49:V51) -> 102.670 | W52: =SUM(W49:W51) -> 314.630 | X52: =SUM(X49:X51) -> 56.380 | Y52: =SUM(Y49:Y51) -> 2.330

Sheet 2 неделя
B2: 12-дневное меню обучачающихся 5-11 классов МБОУ "Татарско-Баганинская средняя общеобразовательная школа" Чистопольского муниципального района Республики Татарстан ( 2-ая неделя)
A4: № РЕЦЕПТУР | B4: Наименование блюд | G4: Выход | H4: Белки, г | I4: Жиры, г | K4: Углеводы, г | M4: Калорийность, ккал | O4: Витамин B1, мг | P4: Витамин С, мг | R4: Витамин А, мг | T4: Витамин Е, мг | V4: Ca, мг | W4: P, мг | X4: Mg, мг | Y4: Fe, мг
B5: 2-ая неделя
B6: 1 день
A7: № 376 Сбор.рец. На прод-ию для обуч. Во всех образ.учреж-Дели 2015 | B7: Кондитерские изделия ( печенье) | G7: 40 | H7: 2.280 | I7: 0.240 | K7: 14.760 | M7: 71 | O7: 0.033 | P7: - | R7: - | T7: 0.330 | V7: 6.000 | W7: 19.500 | X7: 4.200 | Y7: 0.330
A8: № 376 Сбор.рец. На прод-ию для обуч. Во всех образ.учреж-Дели 2015 | B8: Чай с сахаром | G8: 200/15 | H8: 0.53 | I8: - | K8: 9.470 | M8: 40 | O8: - | P8: 0.27 | R8: - | T8: - | V8: 13.600 | W8: 22.13 | X8: 11.73 | Y8: 0.100
A9: № 280 Сбор.рец. На прод-ию для обуч. Во всех образ.учреж-Дели -2015 | B9: ГУЛЯШ ИЗ ГОВЯДИНЫ | G9: 60/60 | H9: 8.330 | I9: 7.743 | K9: 3.194 | M9: 175 | O9: 0.030 | P9: 0.650 | R9: 0.1 | T9: 1.256 | V9: 100.530 | W9: 110.071 | X9: 0.077 | Y9: 1.000
A10: № 171 Сбор.рец. На прод-ию для обуч. Во всех образ.учреж-Дели 2015 | B10: ПЮРЕ КАРТОФЕЛЬНОЕ | G10: 200 | H10: 6.662 | I10: 9.024 | K10: 34.000 | M10: 170 | O10: 0.292 | P10: - | T10: 0.518 | V10: 37.352 | W10: 170.553 | X10: 40.550 | Y10: 1.101
A11: № 376 Сбор.рец. На прод-ию для обуч. Во всех образ.учреж-Дели 2015 | B11: ЧАЙ С САХАРОМ | G11: 200/15 | H11: 0.53 | I11: - | K11: 9.470 | M11: 40 | O11: - | P11: 0.27 | R11: - | T11: - | V11: 13.600 | W11: 22.13 | X11: 11.73 | Y11: 0.100
B12: ХЛЕБ ПШЕНИНИЧНЫЙ | G12: 50 | H12: 2.280 | I12: 0.240 | K12: 14.760 | M12: 71 | O12: 0.033 | P12: - | R12: - | T12: 0.330 | V12: 6.000 | W12: 19.500 | X12: 4.200 | Y12: 0.330
B13: Итого: | H13: =SUM(H9:H12) -> 17.802 | I13: =SUM(I9:I12) -> 17.007 | K13: =SUM(K9:K12) -> 61.424 | M13: =SUM(M9:M12) -> 456 | O13: =SUM(O9:O12) -> 0.36 | P13: =SUM(P9:P12) -> 0.920 | R13: =SUM(R9:R12) -> 0.1 | T13: =SUM(T9:T12) -> 2.104 | V13: =SUM(V9:V12) -> 157.482 | W13: =SUM(W9:W12) -> 322.254 | X13: =SUM(X9:X12) -> 56.6 | Y13: =SUM(Y9:Y12) -> 2.53
B14: 2 день
A15: № 376 Сбор.рец. На прод-ию для обуч. Во всех образ.учреж-Дели 2015 | B15: Сдоба обыкновенная | G15: 100 | H15: 2.280 | I15: 0.240 | K15: 14.760 | M15: 71 | O15: 0.033 | P15: - | R15: - | T15: 0.330 | V15: 6.000 | W15: 19.500 | X15: 4.200 | Y15: 0.330
A16: № 376 Сбор.рец. На прод-ию для обуч. Во всех образ.учреж-Дели 2015 | B16: КАКАО С МОЛОКОМ | G16: 200/15 | H16: 0.53 | I16: - | K16: 9.470 | M16: 40 | O16: - | P16: 0.27 | R16: - | T16: - | V16: 13.600 | W16: 22.13 | X16: 11.73 | Y16: 0.100
A17: № 291 Сбор.рец. На прод-ию для обуч. Во всех образ.учреж-Дели -2015 | B17: ПЛОВ ИЗ ПТИЦЫ | G17: 50/150 | H17: 14.510 | I17: 14.710 | K17: 28.340 | M17: 364 | O17: 0.210 | P17: 4.900 | R17: 0.100 | T17: 1.200 | V17: 83.070 | W17: 273.000 | X17: 40.450 | Y17: 1.900
A18: № 376 Сбор.рец. На прод-ию для обуч. Во всех образ.учреж-Дели 2015 | B18: ЧАЙ С САХАРОМ | G18: 200/15 | H18: 0.53 | I18: - | K18: 9.470 | M18: 40 | O18: - | P18: 0.27 | R18: - | T18: - | V18: 13.600 | W18: 22.13 | X18: 11.73 | Y18: 0.100
B19: ХЛЕБ ПШЕНИНИЧНЫЙ | G19: 50 | H19: 2.280 | I19: 0.240 | K19: 14.760 | M19: 71 | O19: 0.033 | P19: - | R19: - | T19: 0.330 | V19: 6.000 | W19: 19.500 | X19: 4.200 | Y19: 0.330
B20: Итого: | H20: =SUM(H16:H19) -> 17.850 | I20: =SUM(I16:I19) -> 14.950 | K20: =SUM(K16:K19) -> 62.040 | M20: =SUM(M16:M19) -> 515 | O20: =SUM(O16:O19) -> 0.24 | P20: =SUM(P16:P19) -> 5.4 | R20: =SUM(R17:R19) -> 0.1 | T20: =SUM(T16:T19) -> 1.530 | V20: =SUM(V16:V19) -> 116.27 | W20: =SUM(W16:W19) -> 336.76 | X20: =SUM(X16:X19) -> 68.11 | Y20: =SUM(Y16:Y19) -> 2.430
B21: 3 день
A22: № 376 Сбор.рец. На прод-ию для обуч. Во всех образ.учреж-Дели 2015 | B22: Сдоба обыкновенная | G22: 100 | H22: 2.280 | I22: 0.240 | K22: 14.760 | M22: 71 | O22: 0.033 | P22: - | R22: - | T22: 0.330 | V22: 6.000 | W22: 19.500 | X22: 4.200 | Y22: 0.330
A23: № 376 Сбор.рец. На прод-ию для обуч. Во всех образ.учреж-Дели 2015 | B23: Чай с сахаром | G23: 200/15 | H23: 0.53 | I23: - | K23: 9.470 | M23: 40 | O23: - | P23: 0.27 | R23: - | T23: - | V23: 13.600 | W23: 22.13 | X23: 11.73 | Y23: 0.100
A24: № 234 Сбор.рец. На прод-ию для обуч. Во всех образ.учреж-Дели -2015 | B24: КОТЛЕТЫ РЫБНЫЕ | G24: 100 | H24: 6.450 | I24: 4.240 | K24: 7.49 | M24: 116 | O24: 0.050 | P24: 0.480 | R24: 0.100 | T24: 0.646 | V24: 44.020 | W24: 137.060 | X24: 12.000 | Y24: 0.000
A25: № 312 Сбор.рец. На прод-ию для обуч. Во всех образ.учреж-Дели -2015 | B25: КАША ГРЕЧНЕВАЯ РАССЫПЧАТАЯ С МАСЛОМ | G25: 200 | H25: 3.090 | I25: 8.282 | K25: 22 | M25: 172 | O25: 0.164 | P25: 7.943 | R25: 0.080 | T25: 0.231 | V25: 47.805 | W25: 98.835 | X25: 8.000 | Y25: 0.000
A26: № 379 Сбор.рец. На прод-ию для обуч. Во всех образ.учреж-Дели 2015 | B26: Чай с сахаром | G26: 200 | H26: 3.600 | I26: 2.670 | K26: 29.200 | M26: 155 | O26: 0.030 | P26: 1.470 | V26: 158.670 | W26: 132.000 | X26: 29.330 | Y26: 2.400
B27: ХЛЕБ ПШЕНИНИЧНЫЙ | G27: 50 | H27: 2.280 | I27: 0.240 | K27: 14.760 | M27: 71 | O27: 0.033 | P27: - | R27: - | T27: 0.330 | V27: 6.000 | W27: 19.500 | X27: 4.200 | Y27: 0.330
B28: Итого: | H28: =SUM(H24:H27) -> 15.420 | I28: =SUM(I24:I27) -> 15.432 | K28: =SUM(K24:K27) -> 73.517 | M28: =SUM(M24:M27) -> 514 | O28: =SUM(O24:O27) -> 0.277 | P28: =SUM(P24:P27) -> 9.893 | R28: =SUM(R24:R27) -> 0.18 | T28: =SUM(T24:T27) -> 1.207 | V28: =SUM(V24:V27) -> 256.495 | W28: =SUM(W24:W27) -> 387.395 | X28: =SUM(X24:X27) -> 53.530 | Y28: =SUM(Y24:Y27) -> 2.730
B29: 4 день
A30: № 376 Сбор.рец. На прод-ию для обуч. Во всех образ.учреж-Дели 2015 | B30: Кондитерские изделия ( пряники) | G30: 80 | H30: 2.280 | I30: 0.240 | K30: 14.760 | M30: 71 | O30: 0.033 | P30: - | R30: - | T30: 0.330 | V30: 6.000 | W30: 19.500 | X30: 4.200 | Y30: 0.330
A31: № 376 Сбор.рец. На прод-ию для обуч. Во всех образ.учреж-Дели 2015 | B31: Чай с сахаром | G31: 200/15 | H31: 0.53 | I31: - | K31: 9.470 | M31: 40 | O31: - | P31: 0.27 | R31: - | T31: - | V31: 13.600 | W31: 22.13 | X31: 11.73 | Y31: 0.100
A32: № 256 Сбор.рец. На прод-ию для обуч. Во всех образ.учреж-Дели 2015 | B32: ФРИКАДЕЛЬКИ В СОУСЕ | G32: 70/50 | H32: 10.500 | I32: 11.030 | K32: 3.184 | M32: 196 | O32: 0.140 | P32: 3.890 | T32: 0.363 | V32: 66.806 | W32: 215.174 | X32: 30.164 | Y32: 1.430
A33: № 203 Сбор.рец. На прод-ию для обуч. Во всех образ.учреж-Дели 2015 | B33: МАКАРОННЫЕ ИЗДЕЛИЯ ОТВАРНЫЕ С МАСЛОМ | G33: 200\5 | H33: 5.100 | I33: 4.468 | K33: 28.500 | M33: 187 | O33: 0.087 | P33: - | R33: 0.100 | T33: 0.816 | V33: 16.457 | W33: 57.009 | X33: 8.479 | Y33: 0.869
A34: № 382 Сбор.рец. На прод-ию для обуч. Во всех образ.учреж-Дели 2015 | B34: КАКАО С МОЛОКОМ | G34: 200 | H34: 3.780 | I34: 0.670 | K34: 26.000 | M34: 125 | O34: 0.020 | P34: 1.330 | T34: 0.012 | V34: 133.330 | W34: 111.110 | X34: 25.560 | Y34: 2.000
B35: ХЛЕБ ПШЕНИНИЧНЫЙ | G35: 50 | H35: 2.280 | I35: 0.240 | K35: 14.760 | M35: 71 | O35: 0.033 | P35: - | R35: - | T35: 0.330 | V35: 6.000 | W35: 19.500 | X35: 4.200 | Y35: 0.330
B36: Итого: | H36: =SUM(H31:H35) -> 22.190 | I36: =SUM(I31:I35) -> 16.408 | K36: =SUM(K31:K35) -> 81.914 | M36: =SUM(M31:M35) -> 619 | O36: =SUM(O31:O35) -> 0.280 | P36: =SUM(P31:P35) -> 5.49 | R36: =SUM(R32:R35) -> 0.1 | T36: =SUM(T31:T35) -> 1.521 | V36: =SUM(V31:V35) -> 236.193 | W36: =SUM(W31:W35) -> 424.92 | X36: =SUM(X31:X35) -> 80.133 | Y36: =SUM(Y31:Y35) -> 4.7
B37: 5 день
A38: № 376 Сбор.рец. На прод-ию для обуч. Во всех образ.учреж-Дели 2015 | B38: Кондитерские изделия ( печенье) | G38: 40 | H38: 2.280 | I38: 0.240 | K38: 14.760 | M38: 71 | O38: 0.033 | P38: - | R38: - | T38: 0.330 | V38: 6.000 | W38: 19.500 | X38: 4.200 | Y38: 0.330
A39: № 376 Сбор.рец. На прод-ию для обуч. Во всех образ.учреж-Дели 2015 | B39: Чай с сахаром | G39: 200/15 | H39: 0.53 | I39: - | K39: 9.470 | M39: 40 | O39: - | P39: 0.27 | R39: - | T39: - | V39: 13.600 | W39: 22.13 | X39: 11.73 | Y39: 0.100
A40: № 268 Сбор.рец. На прод-ию для обуч. Во всех образ.учреж-Дели 2015 | B40: КОТЛЕТЫ ИЗ ПТИЦЫ | G40: 100 | H40: 9.660 | I40: 12.412 | K40: 9.450 | M40: 182 | O40: 0.166 | P40: 3.861 | R40: - | T40: 1.384 | V40: 54.974 | W40: 155.026 | X40: 21.930 | Y40: 1.678
A41: № 304 Сбор.рец. На прод-ию для обуч. Во всех образ.учреж-Дели 2015 | B41: РИС ОТВАРНОЙ | G41: 200 | H41: 3.834 | I41: 5.434 | K41: 29.600 | M41: 210 | O41: 0.044 | P41: - | R41: 0.180 | T41: 0.284 | V41: 11.460 | W41: 84.150 | X41: 13.330 | Y41: 0.010
A42: № 376 Сбор.рец. На прод-ию для обуч. Во всех образ.учреж-Дели 2015 | B42: ЧАЙ С САХАРОМ | G42: 200/15 | H42: 0.53 | I42: - | K42: 9.470 | M42: 40 | O42: - | P42: 0.27 | R42: - | T42: - | V42: 13.600 | W42: 22.13 | X42: 11.73 | Y42: 0.100
B43: ХЛЕБ ПШЕНИНИЧНЫЙ | G43: 50 | H43: 2.280 | I43: 0.240 | K43: 14.760 | M43: 71 | O43: 0.033 | P43: - | R43: - | T43: 0.330 | V43: 6.000 | W43: 19.500 | X43: 4.200 | Y43: 0.330
B44: Итого: | H44: =SUM(H40:H43) -> 16.304 | I44: =SUM(I40:I43) -> 18.086 | K44: =SUM(K40:K43) -> 63.280 | M44: =SUM(M40:M43) -> 503 | O44: =SUM(O40:O43) -> 0.24 | P44: =SUM(P40:P43) -> 4.131 | R44: =SUM(R40:R43) -> 0.18 | T44: =SUM(T40:T43) -> 1.998 | V44: =SUM(V40:V43) -> 86.034 | W44: =SUM(W40:W43) -> 280.81 | X44: =SUM(X40:X43) -> 51.190 | Y44: =SUM(Y40:Y43) -> 2.118
B45: 6 день
A46: № 376 Сбор.рец. На прод-ию для обуч. Во всех образ.учреж-Дели 2015 | B46: Хлеб с маслом | G46: 50/10 | H46: 3.8 | I46: 6 | K46: 20.500 | M46: 150 | O46: 0.0666 | P46: 0 | R46: 0.036 | T46: - | V46: 16.002 | W46: 0 | X46: 0 | Y46: 0.714
A47: № 376 Сбор.рец. На прод-ию для обуч. Во всех образ.учреж-Дели 2015 | B47: Чай с сахаром | G47: 200/15 | H47: 0.53 | I47: - | K47: 9.470 | M47: 40 | O47: - | P47: 0.27 | R47: - | T47: - | V47: 13.600 | W47: 22.13 | X47: 11.73 | Y47: 0.100
A48: № 291 Сбор.рец. На прод-ию для обуч. Во всех образ.учреж-Дели -2015 | B48: РАГУ ИЗ ГОВЯДИНЫ | G48: 50/180 | H48: 14.510 | I48: 14.710 | K48: 28.340 | M48: 364 | O48: 0.210 | P48: 4.900 | R48: 0.100 | T48: 1.200 | V48: 83.070 | W48: 273.000 | X48: 40.450 | Y48: 1.900
A49: № 376 Сбор.рец. На прод-ию для обуч. Во всех образ.учреж-Дели 2015 | B49: Компот из сухофруктов | G49: 200/15 | H49: 0.53 | I49: - | K49: 9.470 | M49: 40 | O49: - | P49: 0.27 | R49: - | T49: - | V49: 13.600 | W49: 22.13 | X49: 11.73 | Y49: 0.100
B50: ХЛЕБ ПШЕНИНИЧНЫЙ | G50: 50 | H50: 2.280 | I50: 0.240 | K50: 14.760 | M50: 71 | O50: 0.033 | P50: - | R50: - | T50: 0.330 | V50: 6.000 | W50: 19.500 | X50: 4.200 | Y50: 0.330
B51: Итого: | H51: =SUM(H48:H50) -> 17.32 | I51: =SUM(I48:I50) -> 14.950 | K51: =SUM(K48:K50) -> 52.570 | M51: =SUM(M48:M50) -> 475 | O51: =SUM(O48:O50) -> 0.243 | P51: =SUM(P48:P50) -> 5.170 | R51: =SUM(R48:R50) -> 0.100 | T51: =SUM(T48:T50) -> 1.530 | V51: =SUM(V48:V50) -> 102.670 | W51: =SUM(W48:W50) -> 314.630 | X51: =SUM(X48:X50) -> 56.380 | Y51: =SUM(Y48:Y50) -> 2
